bitfinex/quotes_ETHUSD_20251212
["timestamp","ask_amount","ask_price","bid_price","bid_amount"]
[1765543011153,24.72512809,3237.9,3237.8,0.001]
[1765543011552,35.87327309,3237.9,3237.8,0.001]
[1765543011858,35.25506509,3237.9,3237.8,0.001]
[1765543012551,35.87327309,3237.9,3237.8,0.001]
[1765543013066,35.25809709,3237.9,3237.8,0.001]
[1765543013553,7.81257309,3237.9,3237.8,0.001]
[1765543013757,35.16544309,3237.9,3237.8,0.001]
[1765543014257,34.36734309,3237.9,3237.8,0.001]
[1765543014746,35.08555109,3237.9,3237.8,0.001]
[1765543015970,37.81257309,3237.9,3237.8,0.001]
[1765543023239,37.81257309,3237.9,3235.7,3.21422532]
[1765543023240,0.98597929,3237.6,3235.7,3.21422532]
[1765543023437,0.77522963,3237.0,3235.8,3.09141449]
[1765543023669,1.84370492,3237.0,3235.8,3.09141449]
[1765543023971,4.93298511,3237.0,3236.9,0.967]
[1765543025966,4.44498511,3237.0,3236.9,0.967]
[1765543026170,4.93298511,3237.0,3236.9,0.967]
[1765543026760,0.405504,3236.9,3236.5,0.491]
[1765543027071,0.405504,3236.9,3236.7,0.49]
[1765543027371,0.405504,3236.9,3236.8,0.477]
[1765543027768,0.405504,3236.9,3236.5,0.001]
[1765543027769,9.33900629,3236.6,3236.5,0.001]
[1765543027970,17.5179016,3236.6,3236.5,0.001]
[1765543028148,15.5400736,3236.6,3236.5,0.478]
[1765543028484,14.1026946,3236.6,3236.5,0.001]
[1765543028660,16.13087716,3236.6,3236.5,0.001]
[1765543030170,15.87857716,3236.6,3236.5,0.478]
[1765543030364,16.13137716,3236.6,3236.5,0.001]
[1765543030564,16.42567716,3236.6,3236.5,0.001]
[1765543032078,9.85253284,3236.6,3236.5,0.968]
[1765543032380,7.82435028,3236.6,3236.5,0.968]
[1765543033074,7.33635028,3236.6,3236.5,0.968]
[1765543033371,7.82435028,3236.6,3236.5,0.968]
[1765543034750,7.34635028,3236.6,3236.5,0.968]
[1765543039566,6.85835028,3236.6,3236.5,0.968]
[1765543039768,3.49516599,3236.6,3236.5,0.968]
[1765543039963,3.08966199,3236.6,3236.5,0.968]
[1765543040167,4.15813728,3236.6,3236.5,0.968]
[1765543046496,4.15813728,3236.6,3236.5,0.001]
[1765543046690,4.15813728,3236.6,3236.5,0.4654]
[1765543046995,4.15813728,3236.6,3236.5,0.9636]
[1765543047702,3.67013728,3236.6,3236.5,0.9636]
[1765543047901,4.15813728,3236.6,3236.5,0.9636]
[1765543052713,3.67013728,3236.6,3236.5,0.9636]
[1765543053010,0.488,3236.6,3236.5,0.9636]
[1765543053407,3.08932044,3237.0,3236.5,0.9636]
[1765543053635,1.06847529,3236.9,3236.6,0.4982]
[1765543053986,1.06847529,3236.9,3236.8,0.4644]
[1765543054181,1.06847529,3236.9,3236.8,0.9626]
[1765543055012,4.15785092,3236.9,3236.8,0.9626]
[1765543056306,0.405504,3237.2,3236.8,0.9626]
[1765543056507,4.07509956,3237.2,3237.1,0.6578]
[1765543056691,9.26530228,3237.9,3237.1,0.6578]
[1765543056891,0.58047529,3237.4,3237.3,0.4644]
[1765543057227,1.06847529,3237.4,3237.3,0.9626]
[1765543058515,0.58047529,3237.4,3237.3,0.9626]
[1765543058811,0.58047529,3237.5,3237.3,0.9626]
[1765543058988,3.57689849,3237.4,3237.1,0.1934]
[1765543059386,4.15737378,3237.4,3237.3,0.4644]
[1765543059887,4.15737378,3237.4,3237.3,0.9626]
[1765543060512,4.56287778,3237.4,3237.3,0.9626]
[1765543060681,0.98597929,3237.3,3236.6,0.4982]
[1765543061014,0.58047529,3236.9,3236.6,0.4982]
[1765543061187,0.488,3236.8,3236.6,0.4982]
[1765543061686,0.488,3236.8,3236.7,0.4644]
[1765543062085,6.17798782,3237.3,3236.7,0.9626]
[1765543062310,6.17798782,3237.3,3236.8,0.4644]
[1765543062311,1.06847529,3237.2,3236.8,0.4644]
[1765543062611,1.06847529,3237.2,3236.9,0.4982]
[1765543062923,6.17836952,3237.1,3236.9,0.4982]
[1765543063388,3.66966005,3237.1,3237.0,0.4644]
[1765543064415,3.66966005,3237.1,3237.0,0.9626]
[1765543065315,3.66966005,3237.1,3237.0,0.4644]
[1765543065621,3.66966005,3237.1,3237.0,0.9626]
[1765543066188,4.15766005,3237.1,3237.0,0.9626]
[1765543068647,3.66966005,3237.1,3237.0,0.9626]
[1765543068797,4.15766005,3237.1,3237.0,0.9626]
[1765543069914,6.17760616,3237.5,3237.0,0.9626]
[1765543070116,1.06847529,3237.4,3237.1,0.6644]
[1765543070288,1.06847529,3237.4,3237.2,0.4671]
[1765543070487,1.06847529,3237.4,3237.3,0.4803]
[1765543071006,1.06847529,3237.4,3237.3,0.9474]
[1765543071408,0.58047529,3237.4,3237.3,0.9474]
[1765543071795,1.06847529,3237.4,3237.3,0.9474]
[1765543072000,4.15737378,3237.4,3237.3,0.4803]
[1765543072411,4.15737378,3237.4,3237.3,0.9474]
[1765543072899,8.07798996,3237.4,3236.5,0.001]
[1765543073212,8.07798996,3237.4,3236.6,0.4671]
[1765543073213,11.05978845,3237.4,3236.6,0.4671]
[1765543076434,6.75827227,3237.4,3236.6,0.4671]
[1765543076741,3.66937378,3237.4,3237.3,0.4803]
[1765543076943,7.24627227,3237.4,3236.6,0.4671]
[1765543077316,7.24627227,3237.4,3237.3,0.4803]
[1765543077317,3.66937378,3237.4,3237.3,0.4803]
[1765543077514,4.15737378,3237.4,3236.6,0.4671]
[1765543077703,7.24627227,3237.4,3236.7,0.4671]
[1765543078802,3.66937378,3237.4,3237.3,0.6776]
[1765543079002,4.15737378,3237.4,3237.3,0.6776]
[1765543079202,4.15737378,3237.4,3237.3,1.1447]
[1765543080642,6.17665224,3238.0,3237.3,1.1447]
[1765543080937,0.58047529,3238.0,3237.9,0.4803]
[1765543081252,0.002,3238.5,3237.9,0.4803]
[1765543081540,3.08984931,3238.5,3238.4,0.4803]
[1765543081708,4.1583246,3238.5,3238.4,0.4803]
[1765543081911,4.1583246,3238.5,3238.4,0.9474]
[1765543082112,3.57784931,3238.5,3238.4,0.9474]
[1765543082310,3.08984931,3238.5,3238.4,0.9474]
[1765543082513,3.57784931,3238.5,3238.4,0.9474]
[1765543084014,0.49,3238.5,3238.4,0.9474]
[1765543084209,0.002,3238.5,3238.4,0.9474]
[1765543085042,0.002,3238.5,3238.4,1.35093971]
[1765543085268,0.002,3238.5,3238.4,10.16592016]
[1765543088439,0.002,3238.5,3238.4,10.74639545]
[1765543088623,0.002,3238.5,3238.4,10.86999166]
[1765543088825,3.0861679,3240.3,3239.1,0.4803]
[1765543089028,0.488,3240.2,3239.5,6.20733579]
[1765543089218,3.08635558,3240.1,3239.5,9.91496549]
[1765543089416,0.002,3240.5,3239.5,10.38206549]
[1765543089741,0.49,3240.4,3239.5,10.38206549]
[1765543089941,3.08619077,3240.3,3239.5,10.38206549]
[1765543090245,3.08624796,3240.2,3239.5,4.6550297]
[1765543090442,3.08624796,3240.2,3239.5,7.29516937]
[1765543090645,6.17249592,3240.2,3239.5,1.56813358]
[1765543090850,6.17249592,3240.2,3239.5,0.9474]
[1765543091222,6.17226798,3240.3,3239.5,0.9474]
[1765543091560,6.17226798,3240.3,3239.5,4.03429612]
[1765543091849,3.08805311,3240.4,3239.5,4.03429612]
[1765543092735,6.17410622,3240.4,3239.5,0.9474]
[1765543093232,0.002,3240.4,3239.5,4.03429612]
[1765543094211,0.002,3240.4,3239.5,4.61477141]
[1765543094565,0.002,3240.4,3239.8,0.4803]
[1765543094849,0.002,3240.4,3240.3,0.6776]
[1765543095145,0.002,3240.4,3240.3,6.40463579]
[1765543095317,0.002,3240.4,3240.3,9.95786978]
[1765543096243,0.002,3240.4,3240.3,6.87173579]
[1765543096459,0.002,3240.4,3240.3,7.99107371]
[1765543096616,0.002,3240.4,3240.3,2.26403792]
[1765543096818,0.002,3240.4,3240.3,0.6776]
[1765543097039,0.1091,3240.4,3240.0,0.12355689]
[1765543097228,0.4384,3240.2,3240.0,0.12355689]
[1765543097557,3.08632449,3240.1,3239.7,0.6577]
[1765543097717,3.08632449,3240.1,3239.8,0.47]
[1765543097919,3.08632449,3240.1,3240.0,0.4829]
[1765543098314,3.08616058,3240.3,3240.0,0.9529]
[1765543098521,6.17237504,3240.3,3240.0,0.47]
[1765543098734,3.57316058,3240.3,3240.2,0.4829]
[1765543099018,3.08616058,3240.3,3240.2,0.4829]
[1765543099331,3.08616058,3240.3,3239.9,0.47]
[1765543099332,6.17237504,3240.3,3239.9,0.47]
[1765543099519,6.17237504,3240.3,3239.9,1.10940358]
[1765543099943,0.002,3240.4,3240.2,0.4829]
[1765543100130,0.002,3240.4,3240.3,6.67993579]
[1765543101444,0.002,3240.4,3240.3,9.76606978]
[1765543101955,0.002,3240.4,3240.3,4.03903399]
[1765543102260,0.002,3240.4,3240.3,1.67778088]
[1765543102546,0.002,3240.4,3240.3,0.9529]
[1765543104553,0.002,3240.4,3240.3,4.03903399]
[1765543105653,0.002,3240.4,3240.3,0.9529]
[1765543106455,0.002,3240.4,3240.3,4.03903399]
[1765543106830,0.002,3240.4,3240.3,0.9529]
[1765543107036,0.002,3240.4,3240.3,1.36915991]
[1765543107456,0.002,3240.4,3240.3,0.4829]
[1765543107625,0.002,3240.4,3240.3,0.9529]
[1765543110755,0.002,3240.4,3240.3,0.4829]
[1765543111357,0.4438,3240.4,3240.0,0.12355727]
[1765543111558,0.4438,3240.4,3239.8,0.47]
[1765543111726,0.4438,3240.4,3239.8,1.28916214]
[1765543113259,3.08613399,3240.3,3239.8,3.90575124]
[1765543113429,0.002,3240.4,3240.3,0.4829]
[1765543114465,0.002,3240.4,3240.3,0.9529]
[1765543115274,3.08803876,3240.4,3240.3,0.9529]
[1765543115438,0.002,3240.4,3240.3,0.9529]
[1765543116067,0.002,3240.4,3240.3,0.4829]
[1765543116767,0.002,3240.4,3240.3,0.9529]
[1765543117061,0.002,3240.4,3240.3,1.35681879]
[1765543117441,0.002,3240.4,3240.3,0.9529]
[1765543117638,0.002,3240.4,3240.3,4.03903399]
[1765543117842,0.002,3240.4,3240.3,4.16257409]
[1765543118666,0.002,3240.4,3240.3,1.0764401]
[1765543119364,0.002,3240.4,3240.3,4.16257409]
[1765543119564,0.002,3240.4,3240.3,4.88746139]
[1765543120250,0.002,3240.4,3240.3,4.91832272]
[1765543120984,0.002,3240.4,3240.3,4.88746139]
[1765543123878,0.002,3240.4,3240.3,10.60117468]
[1765543128075,0.002,3240.4,3240.3,10.60095572]
[1765543129863,0.002,3240.4,3240.3,14.49095572]
[1765543130796,0.002,3240.4,3240.3,11.58693501]
[1765543131884,0.002,3240.4,3240.3,11.18143101]
[1765543132599,0.002,3240.4,3240.3,5.46793668]
[1765543133695,0.002,3240.4,3240.3,4.99793668]
[1765543134554,0.002,3240.4,3240.3,4.41746139]
[1765543135265,0.1091,3240.4,3240.3,0.8484274]
[1765543135671,0.1091,3240.4,3240.3,0.7248873]
[1765543135865,0.1091,3240.4,3240.2,3.08620793]
[1765543136473,0.0044,3240.3,3240.1,0.487]
[1765543136672,0.1061,3240.2,3240.1,3.08631583]
[1765543137069,0.002,3240.4,3240.1,3.08631583]
[1765543138458,0.002,3240.4,3240.3,0.4869]
[1765543138680,0.002,3240.4,3240.3,4.85596745]
[1765543138882,0.002,3240.4,3240.3,5.31226745]
[1765543143005,0.002,3240.4,3240.3,4.85596745]
[1765543143502,0.5475,3240.4,3240.0,3.08636771]
[1765543143734,0.1061,3240.1,3240.0,3.08636771]
[1765543144109,0.1061,3240.1,3239.8,3.5854681]
[1765543144266,0.1061,3240.1,3239.8,3.46191808]
[1765543145971,0.4395,3239.9,3239.8,0.37536214]
[1765543146475,0.6956,3239.9,3239.8,0.37536214]
[1765543146695,0.6956,3239.9,3239.2,0.92675399]
[1765543146891,0.6956,3239.9,3239.3,3.08706838]
[1765543147094,3.78214141,3239.9,3239.3,3.08706838]
[1765543147282,0.4418,3239.4,3239.2,3.08716669]
[1765543147504,0.1071,3239.3,3239.1,3.08726341]
[1765543147711,0.4384,3239.7,3239.1,0.61747243]
[1765543147923,0.1104,3239.2,3238.8,3.08747028]
[1765543148233,0.1104,3239.2,3238.9,3.08744877]
[1765543148397,0.5456,3239.2,3238.9,3.08744877]
[1765543148598,6.80678282,3239.9,3238.9,3.08744877]
[1765543148797,0.4418,3239.5,3238.9,3.08744877]
[1765543148994,0.4418,3239.5,3239.0,3.44174542]
[1765543149226,3.52870865,3239.5,3239.0,3.44174542]
[1765543149402,0.1071,3239.1,3239.0,0.35437488]
[1765543149603,0.1071,3239.1,3238.8,3.54378031]
[1765543150015,0.1071,3239.1,3238.9,3.08745738]
[1765543150835,0.4384,3239.4,3238.9,3.08741676]
[1765543151034,0.4384,3239.4,3238.8,3.08756329]
[1765543151536,3.52541503,3239.4,3238.8,3.08756329]
[1765543151704,0.4384,3239.4,3238.8,3.79951504]
[1765543152236,0.1467,3239.9,3239.3,0.4869]
[1765543152403,3.23325133,3239.9,3239.3,0.4869]
[1765543152596,0.1071,3239.4,3239.1,0.1939]
[1765543152799,0.1071,3239.4,3238.8,6.88707833]
[1765543153012,0.1071,3239.4,3239.0,3.08737264]
[1765543153532,0.5455,3239.4,3239.0,3.08737264]
[1765543154795,0.1071,3239.4,3239.0,3.08737264]
[1765543155039,3.08664717,3239.8,3239.3,0.4869]
[1765543155237,3.52844717,3239.8,3239.1,0.6502]
[1765543155542,0.4418,3239.7,3239.1,0.75623531]
[1765543156538,3.52854975,3239.7,3239.1,0.75623531]
[1765543156746,3.52854975,3239.7,3238.9,3.54371748]
[1765543156747,0.1071,3239.2,3238.9,3.54371748]
[1765543156915,0.1071,3239.2,3239.0,3.08730255]
[1765543158558,0.1071,3239.2,3239.0,3.08737264]
[1765543159346,0.0044,3239.1,3238.9,3.08742256]
[1765543159648,0.487,3239.6,3239.0,0.9811]
[1765543159849,3.52861505,3239.6,3239.0,0.71559905]
[1765543160014,4.01561505,3239.6,3239.0,0.71559905]
[1765543160215,0.4418,3239.5,3239.0,0.71559905]
[1765543160850,0.4418,3239.5,3239.1,3.08727733]
[1765543161055,0.4418,3239.5,3239.0,3.8029258]
[1765543161346,0.4418,3239.5,3239.1,0.68903484]
[1765543162250,0.1071,3239.2,3239.1,0.68903484]
[1765543163027,0.1071,3239.2,3239.1,3.77631217]
[1765543168422,3.0866531,3239.8,3239.1,4.26691217]
[1765543168654,0.487,3239.7,3239.1,4.26691217]
[1765543168820,0.487,3239.7,3239.3,3.08708671]
[1765543169148,0.9288,3239.7,3239.3,3.08708671]
[1765543169529,0.4418,3239.6,3239.2,3.56288079]
[1765543175362,0.1071,3239.3,3239.2,0.47574122]
[1765543175538,0.1071,3239.3,3238.7,0.487]
[1765543175539,0.1071,3239.3,3239.1,3.08727369]
[1765543175926,0.0044,3239.2,3239.1,3.08727369]
[1765543176427,0.0044,3239.2,3239.1,3.08727733]
[1765543176848,0.0044,3239.2,3238.9,6.17493592]
[1765543177129,0.4384,3239.5,3238.9,6.66543592]
[1765543177330,0.4384,3239.5,3239.0,0.66654359]
[1765543179458,0.4384,3239.5,3239.1,3.08727733]
[1765543181664,3.08665571,3239.8,3239.2,0.4905]
[1765543181839,0.487,3239.6,3239.2,0.4905]
[1765543182367,0.9288,3239.6,3239.2,0.4905]
[1765543182564,0.9288,3239.6,3239.1,3.27457733]
[1765543182765,0.9288,3239.6,3239.1,4.46792635]
[1765543184665,0.4418,3239.5,3239.1,4.28062635]
[1765543184857,0.487,3239.6,3239.1,4.28062635]
[1765543185056,0.9288,3239.6,3239.1,4.28062635]
[1765543185259,0.9288,3239.6,3239.1,3.79012635]
[1765543185464,0.4418,3239.5,3239.1,0.70284902]
[1765543185680,0.1071,3239.2,3239.0,3.08732131]
[1765543186152,0.1071,3239.2,3239.1,3.08727733]
[1765543186353,0.4418,3239.5,3239.1,3.08727733]
[1765543186676,0.4418,3239.5,3239.0,6.17473913]
[1765543187170,0.4418,3239.5,3239.0,3.57786649]
[1765543187379,0.4418,3239.5,3239.0,4.24439794]
[1765543188807,0.4418,3239.5,3239.0,7.33177058]
[1765543189070,0.4418,3239.5,3239.0,4.24439794]
[1765543191455,0.4418,3239.5,3239.0,7.33177058]
[1765543191859,0.4418,3239.5,3239.0,4.24439794]
[1765543193280,0.4418,3239.5,3239.0,7.33177058]
[1765543193873,0.4418,3239.5,3239.0,4.24439794]
[1765543197483,0.4418,3239.5,3239.1,0.4625]
[1765543197776,0.487,3239.6,3239.1,0.4625]
[1765543197982,4.01561997,3239.6,3239.1,0.4625]
[1765543198356,0.4418,3239.5,3239.0,3.75389794]
[1765543198754,0.1071,3239.1,3239.0,3.75385795]
[1765543199081,0.4418,3239.5,3239.1,3.08727291]
[1765543199266,0.4418,3239.5,3239.0,3.54359222]
[1765543199984,0.4418,3239.5,3239.1,3.08725862]
[1765543200487,0.4418,3239.5,3239.0,3.54362422]
[1765543201684,0.4418,3239.5,3239.0,4.01592422]
[1765543202585,0.4418,3239.5,3239.0,7.10329686]
[1765543202784,0.4418,3239.5,3239.0,7.86232655]
[1765543203386,0.4418,3239.5,3239.0,4.77497273]
[1765543203680,0.487,3239.6,3239.0,7.39004537]
[1765543203856,0.487,3239.6,3239.1,0.6466]
[1765543204276,0.487,3239.6,3239.2,0.4643]
[1765543204477,0.9288,3239.6,3239.2,0.4643]
[1765543204874,0.4418,3239.5,3239.0,1.22332969]
[1765543205075,0.4418,3239.5,3239.0,0.4643]
[1765543205289,0.4418,3239.5,3239.0,3.55161899]
[1765543205755,0.4418,3239.1,3239.0,3.08731899]
[1765543205960,0.4418,3239.1,3238.9,3.57441612]
[1765543206183,3.57381182,3239.6,3239.0,3.58537264]
[1765543206377,0.4418,3239.5,3239.0,3.58537264]
[1765543206957,0.4418,3239.5,3239.0,7.13704528]
[1765543207162,0.487,3239.6,3239.1,0.6466]
[1765543207683,0.487,3239.6,3239.2,0.4643]
[1765543207878,4.0156044,3239.6,3239.2,0.4643]
[1765543208079,3.5286044,3239.6,3239.2,0.4643]
[1765543208273,0.487,3239.6,3239.2,0.4643]
[1765543209485,0.487,3239.6,3239.2,3.551482]
[1765543212194,0.487,3239.6,3239.2,0.4643]
[1765543212195,3.57380511,3239.6,3239.2,0.4643]
[1765543212381,0.9288,3239.6,3239.1,3.26953543]
[1765543212572,4.01561764,3239.6,3239.1,3.73383543]
[1765543214890,0.9288,3239.6,3239.1,3.73383543]
[1765543215095,0.487,3239.6,3239.2,0.4643]
[1765543216093,0.4418,3239.8,3239.2,0.4643]
[1765543216270,0.487,3239.7,3239.2,3.55141674]
[1765543216469,0.487,3239.7,3239.3,0.4643]
[1765543217495,3.52843835,3239.8,3239.3,0.4643]
[1765543217693,3.57363835,3239.8,3239.3,0.4648]
[1765543218074,0.487,3239.8,3239.3,0.4648]
[1765543218276,3.23325934,3239.9,3239.3,3.55184064]
[1765543218478,0.487,3239.8,3239.3,3.55184064]
[1765543218890,0.487,3239.8,3239.4,0.4648]
[1765543223502,3.23326122,3239.9,3239.4,0.4648]
[1765543223804,0.487,3239.8,3239.4,0.4648]
[1765543224299,0.1071,3239.5,3239.1,3.72589254]
[1765543224478,0.1071,3239.5,3239.2,3.08718075]
[1765543224679,0.1071,3239.5,3239.2,3.54358075]
[1765543225705,0.1071,3239.5,3239.2,0.4564]
[1765543226506,0.1071,3239.5,3239.2,3.54358002]
[1765543226684,0.487,3239.9,3239.4,0.4688]
[1765543227006,0.487,3239.9,3239.6,0.4688]
[1765543227374,0.487,3240.0,3239.6,0.4688]
[1765543227771,0.9288,3240.0,3239.6,0.4688]
[1765543228312,3.08644472,3240.0,3239.6,0.4688]
[1765543228478,3.57344472,3240.0,3239.6,0.4688]
[1765543228677,3.57344472,3240.0,3239.6,0.9252]
[1765543228890,4.01524472,3240.0,3239.6,0.9252]
[1765543229098,4.01524472,3240.0,3239.6,0.4688]
[1765543233005,0.4418,3239.9,3239.6,0.4688]
[1765543233380,0.4418,3239.9,3239.4,3.5433716]
[1765543233581,0.4418,3239.9,3239.4,4.91678593]
[1765543233906,0.4418,3239.9,3239.4,4.46038593]
[1765543234103,3.52832301,3239.9,3239.5,0.4564]
[1765543236484,3.67502301,3239.9,3239.4,4.46038593]
[1765543236687,3.67502301,3239.9,3239.4,4.91678593]
[1765543237718,3.67502301,3239.9,3239.4,1.82981433]
[1765543237892,0.4418,3239.8,3239.4,1.82981433]
[1765543238292,0.4418,3239.8,3239.4,4.91679182]
[1765543238784,0.4418,3239.8,3239.4,1.82981433]
[1765543240304,0.4418,3239.8,3239.5,0.53744805]
[1765543240489,3.52842869,3239.8,3239.5,0.53744805]
[1765543240688,0.1071,3239.6,3239.3,0.45761389]
[1765543240929,0.1071,3239.6,3239.3,0.4564]
[1765543241902,0.1071,3239.6,3239.3,3.54348375]
[1765543244135,0.1071,3239.6,3239.3,3.08708375]
[1765543244417,3.08662869,3239.8,3239.4,0.4564]
[1765543244609,3.52842869,3239.8,3239.4,0.4564]
[1765543244810,3.52842869,3239.8,3239.4,0.9034338]
[1765543247222,3.08662869,3239.8,3239.4,0.9034338]
[1765543249020,3.52842869,3239.8,3239.4,0.9034338]
[1765543252522,0.4418,3239.8,3239.4,3.99040984]
[1765543252723,3.23325129,3239.9,3239.4,0.9034338]
[1765543253018,3.67505129,3239.9,3239.4,0.9034338]
[1765543256230,6.31981147,3239.9,3239.4,0.4470338]
[1765543256429,0.4418,3239.8,3239.4,0.4470338]
[1765543256838,0.4418,3239.8,3239.5,0.92685421]
[1765543257027,3.23325129,3239.9,3239.5,0.92685421]
[1765543257222,3.67505129,3239.9,3239.5,0.92685421]
[1765543257404,3.67505129,3239.9,3239.5,1.40295421]
[1765543257935,3.67505129,3239.9,3239.5,0.4761]
[1765543258137,3.67505129,3239.9,3239.6,0.92685421]
[1765543260609,0.1071,3239.7,3239.6,0.92685421]
[1765543260810,3.67505129,3239.9,3239.6,0.92685421]
[1765543261737,6.76161147,3239.9,3239.6,0.92685421]
[1765543261938,0.1071,3239.7,3239.6,0.92685421]
[1765543262407,3.19380555,3239.7,3239.6,0.92685421]
[1765543263039,0.1071,3239.7,3239.6,0.92685421]
[1765543263205,3.23325129,3239.9,3239.6,1.41515421]
[1765543263206,0.1467,3239.9,3239.6,1.41515421]
[1765543263411,3.08648377,3240.0,3239.6,1.41515421]
[1765543263621,3.08648377,3240.0,3239.7,0.4761]
[1765543263622,0.487,3239.9,3239.7,0.4761]
[1765543263930,0.487,3239.9,3239.7,0.92685134]
[1765543264741,3.57354861,3239.9,3239.7,0.92685134]
[1765543265045,0.1104,3239.8,3239.7,0.92685134]
[1765543266652,3.08613399,3240.3,3239.7,1.89125134]
[1765543266834,0.487,3240.2,3239.8,1.15352513]
[1765543267314,3.08808259,3240.4,3239.9,0.4761]
[1765543267515,3.08808259,3240.4,3239.9,1.40280533]
[1765543267516,0.487,3240.3,3239.9,1.40280533]
[1765543267925,0.487,3240.3,3240.0,0.4761]
[1765543268242,0.487,3240.3,3240.0,1.40280533]
[1765543268537,0.487,3240.3,3240.0,0.4761]
[1765543268742,0.002,3240.4,3240.2,0.4883]
[1765543268947,0.002,3240.4,3240.3,0.4883]
[1765543269245,0.002,3240.4,3240.3,0.9644]
[1765543269416,0.002,3240.4,3240.3,1.08795422]
[1765543270352,0.002,3240.4,3240.3,0.61185422]
[1765543272246,0.002,3240.4,3240.3,4.59150557]
[1765543274659,0.4438,3240.4,3240.3,0.54097158]
[1765543274866,0.4438,3240.4,3240.3,0.12355422]
[1765543275331,0.002,3240.4,3240.3,0.61185422]
[1765543275736,0.002,3240.4,3240.3,1.08795422]
[1765543277058,0.4404,3240.4,3240.3,0.12355422]
[1765543277239,0.5508,3240.4,3240.3,0.12355422]
[1765543278372,3.63683876,3240.4,3240.3,0.12355422]
[1765543280184,4.3093171,3240.4,3240.3,0.12355422]
[1765543280386,7.39535586,3240.4,3239.7,3.58638789]
[1765543280586,0.5974,3240.3,3239.8,0.92678262]
[1765543281384,0.4418,3240.2,3239.8,0.92678262]
[1765543282791,0.2538,3239.9,3239.8,0.92678262]
[1765543282991,6.88477042,3239.9,3238.1,0.698]
[1765543283285,0.4418,3238.7,3238.3,0.487]
[1765543283459,1.0763,3238.7,3238.1,0.1983]
[1765543283660,1.6704,3238.7,3238.1,0.6853]
[1765543283892,1.6704,3238.7,3238.1,0.488]
[1765543284101,1.6704,3238.7,3238.1,0.001]
[1765543284457,4.75805862,3238.7,3238.1,0.001]
[1765543287307,4.65095862,3238.7,3238.1,0.001]
[1765543287493,4.65095862,3238.7,3238.2,0.5007]
[1765543287698,4.16395862,3238.7,3238.2,0.5007]
[1765543287897,4.65095862,3238.7,3238.2,0.5007]
[1765543288506,4.65095862,3238.7,3238.2,0.001]
[1765543288710,5.53190748,3238.7,3238.2,0.001]
[1765543295020,5.56270528,3238.7,3238.2,0.001]
[1765543295596,21.90063628,3238.7,3238.2,0.001]
[1765543295912,21.86983848,3238.7,3238.2,0.001]
[1765543296520,5.53190748,3238.7,3238.2,0.001]
[1765543296715,35.93243091,3238.7,3238.2,0.001]
[1765543296917,0.1071,3238.2,3237.9,0.001]
[1765543297227,5.82591634,3238.0,3237.9,0.001]
[1765543297420,6.45720797,3238.0,3237.9,0.001]
[1765543297619,6.89560797,3238.0,3237.9,0.001]
[1765543298927,9.98393409,3238.0,3237.9,0.001]
[1765543299126,4.26511775,3238.0,3237.9,0.001]
[1765543299304,4.38879766,3238.0,3237.9,0.001]
[1765543302835,4.41959546,3238.0,3237.9,0.001]
[1765543304339,10.60396973,3238.0,3237.9,0.001]
[1765543306934,4.87579766,3238.0,3237.9,0.001]
[1765543307135,3.95039766,3238.0,3237.9,0.001]
[1765543307306,3.80610603,3238.0,3237.9,0.001]
[1765543307818,4.24450603,3238.0,3237.9,0.001]
[1765543308639,4.27530383,3238.0,3237.9,0.001]
[1765543309440,4.24450603,3238.0,3237.9,0.001]
[1765543310041,3.80610603,3238.0,3237.9,0.001]
[1765543310244,4.84820218,3238.0,3237.9,0.001]
[1765543313222,4.25410218,3238.0,3237.9,0.4883]
[1765543313544,4.74110218,3238.0,3237.9,0.4883]
[1765543313724,4.84820218,3238.0,3237.9,0.001]
[1765543314745,5.28660218,3238.0,3237.9,0.001]
[1765543317363,5.31739998,3238.0,3237.9,0.001]
[1765543317864,5.19372007,3238.0,3237.9,0.001]
[1765543318948,5.16292227,3238.0,3237.9,0.001]
[1765543319149,5.19372007,3238.0,3237.9,0.001]
[1765543320467,5.16292227,3238.0,3237.9,0.001]
[1765543320858,5.19372007,3238.0,3237.9,0.001]
[1765543321169,4.72452227,3238.0,3237.9,0.001]
[1765543321541,5.16292227,3238.0,3237.9,0.001]
[1765543322571,4.72452227,3238.0,3237.9,0.001]
[1765543322776,5.16292227,3238.0,3237.9,0.001]
[1765543322967,5.19372007,3238.0,3237.9,0.001]
[1765543323339,9.9955826,3238.0,3237.9,0.001]
[1765543323540,4.72452227,3238.0,3237.9,0.001]
[1765543323746,5.19372007,3238.0,3237.9,0.001]
[1765543324869,4.26832007,3238.0,3237.9,0.001]
[1765543325071,10.4517848,3238.0,3237.9,0.001]
[1765543325964,9.9647848,3238.0,3237.9,0.001]
[1765543326164,10.4517848,3238.0,3237.9,0.001]
[1765543327856,10.8901848,3238.0,3237.9,0.001]
[1765543328486,5.16292227,3238.0,3237.9,0.001]
[1765543328789,10.8901848,3238.0,3237.9,0.001]
[1765543329078,9.9647848,3238.0,3237.9,0.001]
[1765543329283,10.4517848,3238.0,3237.9,0.001]
[1765543329451,4.13042227,3238.0,3237.9,0.9591]
[1765543329654,3.57532612,3238.0,3237.9,0.9591]
[1765543329875,0.487,3238.0,3237.9,0.9591]
[1765543330357,6.17646192,3238.1,3237.9,0.9591]
[1765543330582,3.08823096,3238.1,3238.0,0.9581]
[1765543330887,3.57523096,3238.1,3238.0,0.9581]
[1765543331103,3.08823096,3238.1,3238.0,0.9581]
[1765543331259,3.57623096,3238.1,3238.0,0.9581]
[1765543332934,3.08823096,3238.1,3238.0,0.9581]
[1765543333076,3.57523096,3238.1,3238.0,0.9581]
[1765543334804,0.487,3238.1,3238.0,0.9581]
[1765543335105,0.487,3238.2,3238.0,0.9581]
[1765543335326,0.487,3238.2,3238.1,0.4708]
[1765543335712,0.487,3238.2,3238.1,1.148]
[1765543336205,3.08813538,3238.2,3238.1,1.148]